bitfinex/quotes_ETHUSD_20250523
["timestamp","ask_amount","ask_price","bid_price","bid_amount"]
[1747996851660,6.0,2658.1,2657.6,1.37037411]
[1747996851959,1.6388,2658.5,2657.6,1.37037411]
[1747996852519,1.6388,2658.5,2657.7,14.5]
[1747996852724,1.543,2658.7,2657.8,0.8439135]
[1747996852978,1.543,2658.7,2657.9,11.269]
[1747996853255,7.543,2658.7,2658.0,15.411]
[1747996853449,7.543,2658.7,2658.1,14.5]
[1747996853647,7.543,2658.7,2658.2,1.37037411]
[1747996853956,6.0,2658.7,2658.2,1.37037411]
[1747996854345,6.0,2658.7,2658.3,14.5]
[1747996854532,6.0,2658.9,2658.3,14.5]
[1747996856264,6.0,2658.9,2658.4,16.223]
[1747996856469,6.0,2658.9,2658.5,15.409]
[1747996856828,6.0,2658.9,2658.6,25.766]
[1747996857034,6.0,2658.9,2658.6,14.5]
[1747996857227,0.7543,2658.8,2658.7,26.675]
[1747996857995,6.0,2658.9,2658.7,26.675]
[1747996859637,6.0,2658.9,2658.8,26.673]
[1747996861958,6.0,2658.9,2658.6,14.5]
[1747996862156,6.0,2658.9,2658.7,26.672]
[1747996864094,6.0,2659.3,2658.7,26.672]
[1747996864400,6.0,2659.4,2658.8,0.55]
[1747996864597,6.0,2659.4,2658.7,26.672]
[1747996864990,6.0,2659.4,2658.8,15.406]
[1747996865979,6.0,2659.4,2658.9,14.5]
[1747996866167,6.0,2659.4,2659.0,27.484]
[1747996866801,6.0,2659.4,2659.1,14.5]
[1747996868699,6.1,2659.5,2659.1,14.5]
[1747996868909,6.86433,2659.5,2659.2,11.263]
[1747996869071,1.5681,2659.4,2659.3,15.405]
[1747996869274,7.5681,2659.4,2659.3,15.405]
[1747996870388,7.5681,2659.4,2658.4,14.5]
[1747996870592,11.03723452,2659.4,2659.3,11.263]
[1747996870805,18.22739097,2659.4,2659.3,26.667]
[1747996874685,17.03723452,2659.4,2659.3,26.667]
[1747996875014,17.03723452,2659.4,2658.4,0.3761]
[1747996875015,17.03723452,2659.4,2658.5,0.55]
[1747996875817,17.03723452,2659.4,2658.7,14.5]
[1747996875975,15.46913452,2659.4,2658.8,11.262]
[1747996876318,15.46913452,2659.4,2658.9,31.622]
[1747996877112,6.0,2659.4,2658.9,31.622]
[1747996877312,6.0,2659.4,2659.0,0.94502339]
[1747996877505,6.0,2659.4,2659.0,0.55]
[1747996877823,6.0,2659.4,2659.1,14.5]
[1747996877984,1.6162,2659.6,2659.1,14.5]
[1747996877985,7.6162,2659.6,2659.1,25.762]
[1747996878790,7.6162,2659.6,2659.2,11.262]
[1747996879347,7.6162,2659.6,2659.1,14.5]
[1747996879493,0.76162,2659.5,2659.3,11.262]
[1747996881929,0.76162,2659.5,2659.1,14.5]
[1747996882136,0.76162,2659.5,2659.4,11.261]
[1747996882331,0.76162,2659.5,2659.1,14.5]
[1747996882500,0.76162,2659.5,2659.2,11.261]
[1747996883236,6.0,2659.4,2659.2,11.261]
[1747996885242,5.38988504,2659.4,2659.2,11.261]
[1747996885900,5.38988504,2659.4,2659.3,14.5]
[1747996886340,5.38988504,2659.4,2659.3,45.882]
[1747996886724,0.1,2659.8,2659.3,45.882]
[1747996888425,0.1,2659.8,2659.4,11.26]
[1747996888951,0.1,2659.6,2659.5,15.167]
[1747996889250,0.1,2659.6,2659.5,26.427]
[1747996892251,2.33612624,2659.6,2659.5,27.91853049]
[1747996895754,2.33612624,2659.6,2659.5,15.167]
[1747996895927,2.56973886,2659.6,2659.5,15.167]
[1747996896253,2.56973886,2659.6,2659.5,31.382]
[1747996896755,4.16463886,2659.6,2659.5,16.215]
[1747996896925,0.1,2659.0,2657.6,1.84109745]
[1747996897126,0.1,2659.0,2656.1,9.98]
[1747996897127,0.1,2658.4,2658.2,16.215]
[1747996897327,0.1,2658.4,2658.3,26.427]
[1747996897659,1.5949,2658.3,2658.2,16.215]
[1747996897951,1.5949,2658.3,2658.2,42.642]
[1747996898658,1.5949,2658.3,2658.2,31.382]
[1747996898956,1.5949,2658.3,2658.2,42.643]
[1747996905393,3.83102624,2658.3,2658.2,42.643]
[1747996905897,3.83102624,2658.3,2658.2,42.646]
[1747996906188,4.22412886,2658.3,2658.2,42.646]
[1747996911367,3.83102624,2658.3,2658.2,15.165]
[1747996912605,2.23612624,2658.3,2658.2,26.43]
[1747996913567,0.1,2658.2,2657.5,0.3332465]
[1747996913768,0.1,2658.2,2657.6,26.431]
[1747996914702,0.1,2658.2,2657.5,0.3332465]
[1747996914907,0.1,2658.2,2657.6,26.431]
[1747996915066,1.6743,2658.2,2657.6,26.431]
[1747996915870,1.6743,2658.2,2657.4,0.19538906]
[1747996916306,1.6743,2658.2,2657.5,31.388]
[1747996917007,2.23612624,2658.3,2657.5,31.388]
[1747996917196,2.23612624,2658.3,2657.6,11.266]
[1747996917395,0.1,2658.2,2657.6,11.266]
[1747996918208,2.23612624,2658.3,2657.6,11.266]
[1747996918525,2.23612624,2658.3,2657.7,0.36553222]
[1747996919324,2.23612624,2658.3,2657.6,11.266]
[1747996919504,0.1,2658.5,2657.6,11.266]
[1747996920528,0.1,2658.3,2657.7,11.266]
[1747996920693,0.1,2658.3,2657.8,11.266]
[1747996921626,0.1,2658.5,2656.4,1.81020772]
[1747996921826,2.23612624,2658.4,2656.8,1.89385492]
[1747996922127,1.5162,2658.2,2656.8,1.89385492]
[1747996922292,1.5162,2658.2,2656.7,0.3761]
[1747996922488,1.5162,2658.2,2656.9,0.3761]
[1747996922696,1.5162,2658.2,2657.0,13.1237128]
[1747996922906,3.75232624,2658.2,2657.0,13.4998128]
[1747996923453,3.75232624,2658.2,2657.2,1.8453491]
[1747996923991,2.23612624,2658.2,2657.3,0.55]
[1747996924192,2.23612624,2658.2,2657.4,2.40989367]
[1747996926204,2.23612624,2658.2,2657.5,31.388]
[1747996926391,2.23612624,2658.2,2657.6,11.266]
[1747996927036,1.62569061,2658.2,2657.6,11.266]
[1747996929132,1.62569061,2658.2,2657.5,31.388]
[1747996929293,1.62569061,2658.2,2657.6,11.266]
[1747996930234,1.5701,2658.1,2657.5,16.223]
[1747996930542,1.5701,2658.1,2657.6,26.431]
[1747996931757,1.5701,2658.1,2657.6,15.165]
[1747996931946,1.6701,2658.1,2657.6,15.165]
[1747996932348,1.6701,2658.1,2657.7,11.265]
[1747996932705,1.7349,2657.9,2657.8,15.165]
[1747996932909,2.98161673,2657.9,2657.8,15.165]
[1747996935526,1.7349,2657.9,2657.8,15.165]
[1747996936245,3.36059061,2657.9,2657.8,15.165]
[1747996940672,0.1,2657.7,2657.5,16.223]
[1747996940878,0.1,2657.7,2657.6,26.434]
[1747996942740,0.09653075,2657.7,2657.6,26.434]
[1747996943808,1.62569061,2657.9,2657.6,26.434]
[1747996945387,1.01519427,2657.9,2657.6,26.434]
[1747996951734,1.69283075,2658.6,2657.6,26.434]
[1747996951897,0.09653075,2658.4,2657.6,26.434]
[1747996952296,0.09653075,2658.4,2657.6,28.30203049]
[1747996953926,0.09653075,2658.4,2657.6,17.03503049]
[1747996954232,0.09653075,2658.4,2657.7,11.267]
[1747996954434,1.6245,2658.3,2657.8,11.267]
[1747996954636,0.09653075,2658.0,2657.8,11.267]
[1747996955775,1.64943075,2658.0,2657.9,26.411]
[1747996956252,0.09653075,2658.0,2657.5,16.223]
[1747996956557,0.09653075,2658.1,2657.9,26.411]
[1747996956902,0.09653075,2658.1,2656.8,1.89674411]
[1747996957098,0.09653075,2658.1,2655.7,6.31336818]
[1747996957099,0.09653075,2658.1,2657.1,2.23487356]
[1747996958207,0.09653075,2658.1,2656.6,0.19586297]
[1747996958208,0.09653075,2658.1,2657.2,11.6421]
[1747996958938,1.11172502,2658.3,2657.2,11.6421]
[1747996959121,0.09653075,2658.1,2657.2,11.6421]
[1747996959526,1.01519427,2658.3,2657.4,1.889963]
[1747996959733,0.09653075,2658.2,2657.4,1.889963]
[1747996960125,1.01519427,2658.3,2657.4,1.889963]
[1747996960550,1.5294,2658.7,2657.5,2.35763022]
[1747996960857,0.09653075,2658.5,2657.8,1.88037714]
[1747996961657,1.5294,2658.7,2657.8,1.88037714]
[1747996964364,1.5294,2658.7,2657.8,2.25647714]
[1747996966224,1.5294,2658.7,2657.9,31.366]
[1747996967854,1.70643075,2658.9,2657.9,31.366]
[1747996968965,1.6099,2659.1,2658.0,0.55]
[1747996969860,1.6099,2659.1,2658.1,14.5]
[1747996970065,0.09653075,2658.9,2658.1,14.5]
[1747996970669,1.6099,2659.1,2658.1,14.5]
[1747996970864,0.09653075,2658.9,2658.2,0.55]
[1747996971042,1.6099,2659.1,2658.2,0.55]
[1747996971443,1.6099,2659.1,2658.3,14.5]
[1747996971641,1.6099,2659.1,2658.4,15.143]
[1747996972430,1.6099,2659.1,2658.5,14.5]
[1747996973132,1.6099,2659.1,2658.6,26.38]
[1747996975586,1.6099,2659.1,2658.7,11.263]
[1747996976583,1.6099,2659.1,2658.8,14.5]
[1747996976790,1.6099,2659.1,2658.9,16.219]
[1747996977348,1.6099,2659.1,2659.0,14.5]
[1747996980887,1.6099,2659.1,2659.0,40.878]
[1747996982883,1.6099,2659.1,2659.0,26.378]
[1747996984504,1.6099,2659.1,2659.0,15.115]
[1747996984708,1.6099,2659.1,2659.0,26.378]
[1747996986206,1.73583075,2659.0,2658.9,16.219]
[1747996986453,0.09653075,2658.8,2657.6,2.26601818]
[1747996986583,1.6393,2658.7,2657.8,1.88037714]
[1747996986783,0.09653075,2658.6,2657.8,1.88037714]
[1747996987112,1.6393,2658.7,2657.8,1.88037714]
[1747996987329,1.6393,2658.7,2657.9,16.39743636]
[1747996988513,1.6393,2658.7,2657.9,16.76719329]
[1747996989112,1.6393,2658.7,2657.9,16.39743636]
[1747996989923,1.12550847,2658.7,2658.0,26.8918]
[1747996990473,1.12550847,2658.7,2658.0,26.378]
[1747996993365,1.12550847,2658.7,2658.1,14.5]
[1747996994470,1.12550847,2658.7,2658.2,11.263]
[1747996994668,2.14070274,2658.7,2658.2,11.263]
[1747996995112,2.14070274,2658.7,2658.3,14.5]
[1747996995827,9.10657667,2659.5,2658.3,14.5]
[1747996995828,6.0,2659.3,2658.3,0.5138]
[1747996995990,15.10657667,2659.5,2658.4,0.52623127]
[1747996996189,15.10657667,2659.5,2658.7,16.82077717]
[1747996996585,1.5959,2659.7,2658.7,16.82077717]
[1747996996912,1.5928,2660.1,2658.9,0.5138]
[1747996997129,1.5928,2660.1,2659.1,0.5138]
[1747996999127,1.5161,2660.8,2659.3,0.5138]
[1747996999332,1.5161,2660.8,2659.4,14.5]
[1747996999531,1.5161,2660.8,2659.5,42.597]
[1747996999833,0.04698404,2660.7,2659.5,42.597]
[1747997000018,1.5161,2660.6,2659.5,42.597]
[1747997000324,1.5161,2661.1,2660.1,0.5138]
[1747997000527,1.5161,2661.1,2660.2,15.114]
[1747997001291,1.5161,2661.1,2660.3,14.5]
[1747997004839,1.5857,2660.9,2660.4,26.343]
[1747997005039,0.04698607,2660.8,2660.5,15.083]
[1747997005251,0.55,2661.0,2660.6,16.215]
[1747997005450,1.79927,2660.9,2660.6,16.215]
[1747997010058,1.5118,2660.7,2660.6,16.215]
[1747997011035,1.5118,2660.7,2660.6,27.473]
[1747997011358,2.0531,2660.6,2659.2,0.5138]
[1747997011567,1.5031,2660.4,2659.6,0.49462733]
[1747997012060,1.55009149,2660.4,2659.7,14.5]
[1747997012277,1.55009149,2660.4,2659.8,15.08]
[1747997012485,6.0,2660.3,2659.8,15.08]
[1747997012868,6.0,2660.3,2659.8,15.5938]
[1747997013054,6.0,2660.3,2659.8,15.08]
[1747997015787,6.0,2660.3,2659.9,14.5]
[1747997015997,7.5031,2660.4,2659.9,14.5]
[1747997020774,7.5031,2660.4,2660.0,11.258]
[1747997021393,7.5031,2660.4,2660.0,25.758]
[1747997021855,7.5031,2660.4,2660.1,16.212]
[1747997024986,7.5031,2660.4,2660.1,30.712]
[1747997025365,6.0,2660.4,2660.1,30.712]
[1747997025770,6.0,2660.4,2660.1,31.2258]
[1747997026383,6.0,2660.4,2660.1,30.712]
[1747997026586,6.0,2660.4,2660.2,15.08]
[1747997026794,6.0,2660.4,2660.3,11.258]
[1747997026959,6.0,2660.4,2660.3,26.338]
[1747997028303,6.0,2660.4,2660.1,16.212]
[1747997028601,6.0,2660.4,2660.3,26.338]
[1747997031601,6.0,2660.5,2660.3,26.338]
[1747997031964,6.0,2660.8,2660.3,26.338]
[1747997032160,6.0,2660.8,2660.3,26.8518]
[1747997034067,6.0,2660.8,2660.3,0.5138]
[1747997034408,6.0,2660.8,2660.4,26.338]
[1747997034613,6.0,2661.0,2660.4,26.338]
[1747997034792,6.0,2661.1,2660.6,0.8899]
[1747997035107,6.0,2661.1,2660.8,0.5138]
[1747997035409,6.0,2661.6,2660.9,15.55562733]
[1747997035606,6.0,2661.6,2661.1,0.5138]
[1747997035779,4.92446984,2661.6,2661.2,16.21]
[1747997036115,1.5628,2663.3,2661.4,0.5138]
[1747997036286,1.5628,2663.3,2661.6,0.5138]
[1747997036465,0.55,2663.9,2661.6,0.5138]
[1747997036805,1.5628,2663.7,2661.6,0.5138]
[1747997037489,1.5628,2663.5,2661.6,0.5138]
[1747997037692,1.5628,2663.3,2661.6,0.5138]
[1747997039586,0.0469461,2663.2,2661.6,0.5138]
[1747997039914,1.5628,2663.3,2662.1,0.5138]
[1747997040075,1.5628,2663.3,2662.2,15.056]
[1747997040413,0.04694609,2663.2,2662.2,15.056]
[1747997040990,2.1128,2663.1,2662.3,26.31]
[1747997041217,0.04694888,2663.0,2662.3,26.31]
[1747997041473,2.1128,2663.1,2662.4,15.056]
[1747997041474,1.5628,2663.1,2662.4,15.056]
[1747997041672,1.5628,2663.1,2662.5,15.056]
[1747997041900,1.5628,2663.1,2662.6,15.056]
[1747997042086,0.1,2662.5,2659.2,0.3761]
[1747997042293,0.1,2662.5,2660.6,1.86436624]
[1747997042620,0.1,2662.5,2660.8,1.84324168]
[1747997042795,0.1,2662.3,2661.0,1.80433535]
[1747997042990,0.1,2662.5,2661.0,1.80433535]
[1747997043293,0.1,2662.3,2661.0,1.80433535]
[1747997043499,0.1,2662.5,2661.1,0.55]
[1747997043693,0.1,2662.5,2661.2,1.85229236]
[1747997044033,0.1,2662.3,2661.4,1.84107958]
[1747997044316,0.1,2662.3,2661.3,0.55]
[1747997044317,0.1,2662.3,2661.5,13.11633185]
[1747997044523,0.1,2662.3,2661.5,1.86433185]
[1747997044721,0.1,2662.3,2661.6,11.252]
[1747997045962,0.1,2662.3,2661.0,1.80433535]
[1747997046089,0.1,2662.3,2661.7,11.251]
[1747997046426,0.1,2662.3,2661.8,31.254]
[1747997046721,0.1,2662.1,2661.9,26.303]
[1747997047024,1.7003,2662.1,2661.9,26.303]
[1747997047231,1.7003,2662.1,2662.0,26.303]
[1747997047389,0.1,2662.1,2662.0,26.303]
[1747997048330,0.1,2662.3,2662.0,26.303]
[1747997048940,0.1,2662.1,2662.0,26.303]
[1747997049340,0.1,2662.1,2661.8,16.202]
[1747997049528,0.1,2662.1,2661.9,26.301]
[1747997049851,0.1,2662.3,2661.9,26.301]
[1747997050260,0.1,2662.0,2661.9,26.301]
[1747997051733,0.1,2662.0,2661.9,15.051]
[1747997051943,0.1,2662.0,2661.9,26.301]
[1747997052646,0.1,2662.3,2661.9,26.301]
[1747997052857,0.1,2662.2,2661.9,26.301]
[1747997053168,0.1,2662.4,2661.9,26.301]
[1747997053927,0.75319698,2662.4,2661.9,26.301]
[1747997054247,0.1,2662.4,2661.9,26.301]
[1747997059181,0.1,2662.4,2660.9,1.86027771]
[1747997059376,0.1,2662.4,2661.0,0.38098899]
[1747997059675,4.92446984,2662.5,2661.1,1.88231024]
[1747997060379,4.92446984,2662.5,2661.3,1.82768794]
[1747997060577,4.92446984,2662.5,2661.5,1.85649606]
[1747997060740,4.92446984,2662.5,2661.3,1.82768794]
[1747997061175,0.1,2662.4,2661.5,1.85649606]
[1747997062534,0.1,2662.4,2661.6,0.55]
[1747997062740,1.5512,2662.8,2661.6,0.55]
[1747997062741,1.5512,2662.8,2661.7,1.88536247]
[1747997063042,0.1,2662.9,2661.7,1.88536247]
[1747997063687,0.1,2662.9,2661.8,1.89285462]
[1747997063902,1.5409,2663.6,2662.2,1.80181336]
[1747997064079,0.1,2663.7,2662.3,1.84103331]
[1747997064406,0.1,2663.5,2662.4,1.84598983]
[1747997064556,0.1,2663.7,2662.4,1.84598983]
[1747997064781,0.1,2663.5,2662.4,1.84598983]
[1747997065995,0.03067937,2663.5,2662.4,1.84598983]
[1747997066352,0.03067937,2663.5,2662.6,1.89209485]
[1747997067904,0.03067937,2663.5,2663.3,1.49101913]
[1747997068200,0.03067937,2663.5,2663.4,26.276]
[1747997068693,1.60147937,2663.5,2663.4,26.274]
[1747997068856,1.39818221,2663.5,2663.4,26.274]
[1747997069786,1.39818221,2663.5,2663.3,1.49101913]
[1747997069988,1.39818221,2663.5,2663.4,26.274]
[1747997070383,1.39818221,2663.5,2662.9,1.49101913]
[1747997070589,1.39818221,2663.5,2663.0,26.274]
[1747997071978,2.6709998,2663.4,2663.0,26.274]
[1747997072172,4.3263998,2663.3,2662.9,1.49101913]
[1747997072376,4.3263998,2663.3,2663.0,26.273]
[1747997074104,4.3263998,2663.3,2662.9,1.49101913]
[1747997074510,1.6554,2663.2,2663.0,26.272]
[1747997075010,1.6554,2663.2,2662.9,1.49101913]
[1747997075206,1.6554,2663.2,2663.1,26.272]
[1747997075781,1.6554,2663.2,2662.5,16.196]
[1747997075992,1.6554,2663.2,2663.1,11.245]
[1747997076197,7.6554,2663.2,2663.1,26.272]
[1747997079042,7.6554,2663.2,2662.5,16.196]
[1747997079043,6.0,2663.2,2662.5,16.196]
[1747997079241,6.76554,2663.1,2662.6,26.272]
[1747997079555,1.6604,2663.0,2662.6,26.272]
[1747997079869,1.6604,2663.0,2662.7,26.272]
[1747997080362,1.6604,2663.0,2660.8,1.81911656]
[1747997080505,1.5579,2662.8,2661.2,0.9252]
[1747997080940,1.5579,2662.8,2661.7,14.5]
[1747997081157,1.6463,2662.6,2661.7,14.5]
[1747997081443,6.0,2662.5,2661.7,14.5]
[1747997081657,6.0,2662.5,2661.8,11.246]
[1747997083059,6.0,2662.5,2661.7,14.5]
[1747997083227,1.6065,2662.4,2661.8,11.246]
[1747997086445,1.6065,2662.4,2661.9,31.224]
[1747997086753,6.0,2662.3,2662.0,14.5]
[1747997092485,6.0,2662.5,2662.0,14.5]
[1747997096599,6.0,2662.5,2662.1,11.248]
[1747997097205,6.0,2662.5,2662.2,14.5]
[1747997098002,6.0,2662.5,2662.3,26.257]
[1747997099958,1.04510467,2663.6,2662.4,16.197]
[1747997100163,3.99494202,2664.7,2662.4,17.29013072]
[1747997100363,4.3474942,2664.6,2662.4,16.197]
[1747997100591,0.04694202,2664.5,2662.4,16.197]
[1747997100787,0.55,2664.4,2662.5,26.257]
[1747997100999,0.55,2664.2,2662.5,26.257]
[1747997101208,0.04694202,2664.5,2662.5,26.257]
[1747997101404,0.04693762,2665.0,2662.6,0.5867]
[1747997101606,0.55,2664.9,2662.6,15.0867]
[1747997101907,0.04693462,2664.8,2662.6,15.0867]
[1747997102165,0.55,2664.7,2662.6,15.0867]
[1747997102292,0.04693462,2664.7,2662.6,15.0867]
[1747997102499,6.0,2665.1,2662.6,15.0867]
[1747997102703,0.0469301,2665.0,2662.6,15.0867]
[1747997103101,1.5631,2664.6,2662.6,15.0867]
[1747997103284,0.55,2664.3,2662.6,15.0867]
[1747997103477,1.5631,2663.8,2662.7,26.256]
[1747997103808,1.5631,2663.8,2662.4,16.197]
[1747997103809,1.5631,2663.4,2662.8,26.256]
[1747997104358,0.04693924,2663.3,2662.9,14.5]
[1747997104620,1.5631,2663.1,2663.0,26.256]
[1747997104828,2.1131,2663.1,2663.0,26.255]
[1747997105023,1.5631,2662.9,2662.5,14.5]
[1747997105170,1.5631,2662.9,2662.6,26.255]
[1747997105786,1.5631,2662.9,2662.6,15.008]
[1747997105987,1.5631,2662.9,2662.7,11.247]
[1747997106222,1.5631,2662.9,2662.4,16.197]
[1747997106509,1.6052,2662.7,2662.5,26.255]
[1747997108289,1.82072,2662.7,2662.5,26.255]
[1747997109480,1.6052,2662.7,2662.5,26.255]
[1747997109805,1.6052,2662.7,2662.4,16.197]
[1747997110115,2.13405199,2662.6,2662.5,26.255]
[1747997110272,2.0871,2662.6,2662.5,26.255]
[1747997110774,2.1718,2662.6,2662.5,15.009]
[1747997110972,1.6045,2662.4,2661.5,0.2111]
[1747997111929,1.6045,2662.4,2661.6,14.5]
[1747997112141,1.6045,2662.4,2661.6,25.747]
[1747997112992,1.6512,2662.2,2661.7,11.247]
[1747997113186,1.6337,2662.0,2661.7,11.247]
[1747997116254,1.6337,2662.0,2661.8,31.207]
[1747997118535,2.0699,2662.5,2661.8,31.93985845]
[1747997118733,2.0699,2662.5,2661.8,45.9181]
[1747997118933,15.10657667,2662.4,2661.8,45.707]
[1747997120026,1.5718,2662.2,2661.8,45.707]
[1747997120340,1.5718,2662.2,2661.9,11.249]
[1747997120637,3.23963767,2662.2,2661.9,11.249]
[1747997121047,3.23963767,2662.2,2661.8,16.197]
[1747997121240,3.23963767,2662.2,2662.0,26.26]
[1747997121453,3.78963767,2662.2,2662.1,26.26]
[1747997124544,18.89621434,2662.2,2662.1,15.012]
[1747997125638,18.89621434,2662.2,2662.1,26.262]
[1747997130538,18.89621434,2662.2,2662.1,15.002]
[1747997131849,18.89621434,2662.2,2662.1,26.252]
[1747997134159,18.89621434,2662.2,2662.1,26.253]
[1747997134973,18.89621434,2662.2,2662.1,15.002]
[1747997135180,18.89621434,2662.2,2662.1,26.253]
[1747997135477,18.89621434,2662.2,2661.4,13.5]
[1747997135478,1.581,2661.9,2661.4,13.5]
[1747997136264,1.581,2661.9,2661.5,31.204]
[1747997136467,6.0,2662.0,2661.6,11.251]
[1747997136924,6.0,2662.0,2661.7,0.63663948]
[1747997137130,6.0,2662.0,2661.7,14.13663948]
[1747997137659,6.0,2662.0,2661.7,13.7111]
[1747997139631,6.0,2662.1,2661.7,13.7111]
[1747997140768,5.95,2662.1,2661.7,13.7111]
[1747997141473,5.34043649,2662.1,2661.7,13.7111]
[1747997141834,5.34043649,2662.1,2661.8,26.254]
[1747997143061,15.96151316,2662.0,2661.9,26.254]
[1747997143970,14.44701316,2662.0,2661.9,26.254]
[1747997145397,14.44701316,2662.0,2661.9,26.4651]
[1747997146267,14.44701316,2662.0,2661.9,26.254]
[1747997146970,14.44701316,2662.0,2661.9,39.754]
[1747997148260,14.44701316,2662.0,2661.9,39.753]
[1747997148759,14.44701316,2662.0,2661.9,26.253]
[1747997149355,14.44701316,2662.0,2661.9,42.454]
[1747997151600,16.05411448,2662.0,2661.9,31.204]
[1747997151777,16.05411448,2662.0,2661.9,42.454]
[1747997152600,16.60411448,2662.0,2661.9,42.455]
[1747997152800,18.24901448,2662.0,2661.9,42.455]
[1747997155024,18.24901448,2662.0,2661.9,31.204]
[1747997155194,18.24901448,2662.0,2661.9,42.455]
[1747997155390,18.15321448,2662.0,2661.9,31.204]
[1747997155589,18.15321448,2662.0,2661.9,42.455]
[1747997157307,1.592,2661.5,2660.8,13.1]
[1747997157508,5.34043649,2661.4,2660.9,14.985]
[1747997158533,5.34043649,2661.4,2661.0,11.251]
[1747997159237,5.34043649,2661.4,2661.1,26.237]
[1747997160496,5.34043649,2661.4,2661.1,14.986]
[1747997160736,5.34043649,2661.3,2661.2,11.252]
[1747997162232,6.94433781,2661.3,2661.2,11.252]
[1747997162697,5.34043649,2661.3,2661.2,11.252]
[1747997162901,0.55,2661.2,2660.8,13.1]
[1747997163097,0.55,2661.0,2660.9,26.239]
[1747997163360,0.55,2660.8,2660.1,3.57020682]
[1747997163501,0.55,2660.8,2660.2,24.352]
[1747997163698,1.6323,2660.7,2660.2,24.352]
[1747997164207,1.6323,2660.7,2660.2,11.252]
[1747997165244,1.6323,2660.7,2660.3,11.254]
[1747997166327,1.6323,2660.7,2660.4,31.195]
[1747997169124,14.44701316,2660.6,2660.4,31.195]
[1747997169552,14.44701316,2660.6,2660.4,16.206]
[1747997169553,2.1743,2660.5,2660.4,16.206]
[1747997169728,16.62131316,2660.5,2660.4,42.451]
[1747997170226,16.07131316,2660.5,2660.4,42.451]
[1747997170532,14.44701316,2660.5,2660.4,42.451]
[1747997172757,14.44701316,2660.5,2660.4,42.6621]
[1747997174441,14.44701316,2660.5,2660.4,31.4071]
[1747997174640,14.44701316,2660.5,2660.4,55.7631]
[1747997174836,5.34043649,2660.5,2660.4,55.7631]
[1747997175063,5.34043649,2660.5,2660.4,42.452]
[1747997175269,5.34043649,2660.5,2660.4,16.206]
[1747997175467,6.03823014,2660.5,2660.4,16.206]
[1747997175769,6.03823014,2660.5,2660.4,42.454]
[1747997176296,5.34043649,2660.5,2660.4,42.454]
[1747997178535,5.34043649,2661.0,2660.4,42.454]
[1747997178978,5.34043649,2661.0,2660.5,13.1]
[1747997181384,5.34043649,2661.0,2660.6,0.2111]
[1747997181955,5.34043649,2661.0,2660.7,13.1]
[1747997182483,5.34043649,2661.0,2660.9,3.75812694]
[1747997182683,5.34043649,2661.0,2660.9,18.75012694]
[1747997187190,5.34043649,2661.0,2660.9,18.74912694]
[1747997188368,6.84263649,2661.0,2660.9,18.72612694]
[1747997188602,6.84263649,2661.0,2660.9,29.98212694]
[1747997189171,6.84263649,2661.0,2660.9,18.72512694]
[1747997189396,7.52690014,2661.0,2660.9,18.72512694]
[1747997189567,3.08450955,2660.9,2660.8,3.75826819]
[1747997189799,3.08450955,2660.9,2660.8,18.72526819]
[1747997190176,3.63450955,2660.9,2660.8,18.72526819]
[1747997190490,3.08450955,2660.9,2660.8,29.98026819]
[1747997192614,9.08450955,2660.9,2660.8,29.98026819]
[1747997195187,9.08450955,2660.9,2660.8,29.98126819]
[1747997196180,9.08450955,2660.9,2660.8,46.19026819]
[1747997196871,9.08450955,2660.9,2660.8,19.96726819]
[1747997197077,11.45361817,2660.9,2660.8,46.19126819]
[1747997197771,11.45361817,2660.9,2660.8,34.93526819]
[1747997197990,11.45361817,2660.9,2660.8,46.19126819]
[1747997198615,16.80192665,2660.9,2660.8,18.72626819]
[1747997199523,16.80192665,2660.9,2660.8,3.75826819]
[1747997199728,16.80192665,2660.9,2660.8,29.98226819]
[1747997203230,16.80192665,2660.9,2660.8,3.75826819]
[1747997203435,16.80192665,2660.9,2660.8,29.98426819]
[1747997203733,16.80192665,2660.9,2660.8,18.72726819]
[1747997204063,16.80192665,2660.9,2660.8,29.98426819]
[1747997206247,16.80192665,2660.9,2660.8,46.19426819]
[1747997207371,14.56019484,2660.9,2660.8,42.436]
[1747997207574,14.56019484,2660.9,2660.8,46.19426819]
[1747997210672,12.74108622,2660.9,2660.8,46.19426819]
[1747997210974,16.68888622,2660.9,2660.8,46.19426819]
[1747997211869,17.23888622,2660.9,2660.8,19.96826819]
[1747997212046,18.82908622,2660.9,2660.8,46.19726819]
[1747997212248,18.82908622,2660.9,2660.8,34.93926819]
[1747997212547,20.71199484,2660.9,2660.8,46.19726819]
[1747997212870,20.71199484,2660.9,2660.8,18.72926819]
[1747997214026,20.71199484,2660.9,2660.8,29.98626819]
[1747997214232,20.71199484,2660.9,2660.8,3.75826819]
[1747997214455,20.71199484,2660.9,2660.8,29.98526819]
[1747997216332,20.71199484,2660.9,2660.8,46.19626819]
[1747997217969,20.71199484,2660.9,2660.8,34.93926819]
[1747997218272,20.71199484,2660.9,2660.8,46.19726819]
[1747997220364,2.79173181,2660.8,2660.7,3.75838337]